bitfinex-derivatives/quotes_ETHF0:USTF0_20230830
["timestamp","ask_amount","ask_price","bid_price","bid_amount"]
[1693402992669,2.26993648,1715.7,1715.6,8.157]
[1693402992865,3.03120181,1715.9,1715.6,10.13316343]
[1693402993065,5.59268335,1715.9,1715.6,10.13316343]
[1693402993262,0.29154368,1715.8,1715.6,10.13316343]
[1693402993462,3.03120181,1715.9,1715.7,1.43358176]
[1693402993663,3.32274015,1715.9,1715.8,1.97616343]
[1693402993871,0.29153834,1715.9,1715.8,1.97616343]
[1693402994665,6.23900181,1716.0,1715.8,1.97616343]
[1693402994863,3.03120181,1716.0,1715.9,1.43358176]
[1693402995272,3.03120181,1716.1,1715.9,12.79838176]
[1693402995472,3.03120181,1716.1,1716.0,10.13316343]
[1693402995673,3.32269592,1716.1,1716.0,10.13316343]
[1693402995968,0.29149411,1716.1,1716.0,10.13316343]
[1693402996269,3.32269592,1716.1,1716.0,10.13316343]
[1693402996467,3.03120181,1716.1,1716.0,10.13316343]
[1693402996668,3.32269592,1716.1,1716.0,10.13316343]
[1693402997465,0.29149411,1716.1,1716.0,10.13316343]
[1693402997861,0.29148717,1716.1,1716.0,10.13316343]
[1693402998065,3.03402779,1716.1,1716.0,10.13316343]
[1693402998364,3.32551496,1716.1,1716.0,10.13316343]
[1693403000173,0.29148717,1716.1,1716.0,10.13316343]
[1693403000371,3.32551496,1716.1,1716.0,10.13316343]
[1693403000571,3.03402779,1716.1,1716.0,10.13316343]
[1693403001171,3.03637812,1716.1,1716.0,10.13316343]
[1693403001471,3.32786334,1716.1,1716.0,10.13316343]
[1693403001866,0.29148522,1716.1,1716.0,10.13316343]
[1693403002161,3.32786334,1716.1,1716.0,17.61284391]
[1693403003769,3.03637812,1716.1,1716.0,17.61284391]
[1693403003966,3.32786334,1716.1,1716.0,17.61284391]
[1693403004168,3.32786334,1716.1,1716.0,8.157]
[1693403004565,0.29148522,1716.1,1716.0,8.157]
[1693403004970,4.08695787,1716.1,1716.0,8.157]
[1693403007469,0.29148522,1716.1,1716.0,8.157]
[1693403007670,4.08992026,1716.1,1716.0,8.157]
[1693403007973,0.29148522,1716.1,1716.0,8.157]
[1693403008370,0.29148522,1716.1,1716.0,9.59058176]
[1693403008570,3.79863648,1716.1,1716.0,9.59058176]
[1693403008769,4.0901217,1716.1,1716.0,9.59058176]
[1693403010376,4.0901217,1716.1,1716.0,17.02677455]
[1693403010377,0.29148522,1716.1,1716.0,17.02677455]
[1693403010573,0.00874126,1716.2,1716.0,17.02677455]
[1693403010780,0.00874126,1716.2,1716.1,13.34096343]
[1693403011080,0.3001826,1716.2,1716.1,13.34096343]
[1693403011371,3.04777775,1716.2,1716.1,13.34096343]
[1693403011570,0.3001826,1716.2,1716.1,20.75280342]
[1693403011876,3.33921909,1716.2,1716.1,13.34096343]
[1693403013372,0.3001826,1716.2,1716.1,3.2078]
[1693403013574,4.09881908,1716.2,1716.1,11.3648]
[1693403013769,0.3001826,1716.2,1716.1,8.157]
[1693403013966,0.3001826,1716.2,1715.9,3.2078]
[1693403013967,0.3001826,1716.2,1715.9,11.3648]
[1693403014173,3.03904356,1716.0,1715.9,8.157]
[1693403014375,2.26993648,1716.1,1715.9,11.56674519]
[1693403014676,3.03880473,1716.0,1715.9,6.61754519]
[1693403014878,3.03880473,1716.0,1715.9,14.77454519]
[1693403015880,0.29149718,1716.0,1715.9,14.77454519]
[1693403016076,3.04754599,1716.2,1715.9,22.49921257]
[1693403016287,3.04754599,1716.2,1716.1,11.3648]
[1693403016480,3.04754599,1716.2,1716.1,14.77454519]
[1693403016671,0.00874126,1716.2,1716.1,14.77454519]
[1693403017178,3.73044717,1716.3,1716.1,14.77454519]
[1693403017484,3.0390537,1716.2,1716.1,11.3648]
[1693403017788,3.0390537,1716.2,1716.1,12.79838176]
[1693403018179,3.0390537,1716.2,1716.1,11.3648]
[1693403018582,3.73355038,1716.4,1716.1,12.79838176]
[1693403018781,2.26993648,1716.4,1716.2,8.157]
[1693403019877,14.98514358,1716.4,1716.1,3.2078]
[1693403020971,10.42693648,1716.4,1716.1,3.2078]
[1693403021177,14.98547638,1716.4,1716.1,3.2078]
[1693403022181,12.7155399,1716.4,1716.2,3.40974519]
[1693403022576,12.7155399,1716.4,1716.3,11.3648]
[1693403022577,4.5585399,1716.4,1716.3,11.3648]
[1693403023081,4.5585399,1716.5,1716.3,11.3648]
[1693403023378,4.5585399,1716.5,1716.4,1.97616343]
[1693403024386,4.5585399,1716.5,1716.3,11.3648]
[1693403024583,4.5585399,1716.5,1716.3,13.34096343]
[1693403025475,4.5585399,1716.5,1716.4,1.43358176]
[1693403026088,4.5585399,1716.5,1716.4,9.59058176]
[1693403026990,4.5585399,1716.5,1716.4,8.157]
[1693403027187,4.5585399,1716.5,1716.3,1.97616343]
[1693403027379,12.7155399,1716.4,1716.2,0.00873922]
[1693403027785,6.82847638,1716.3,1716.2,0.00873922]
[1693403030288,2.26993648,1716.3,1716.2,0.00873922]
[1693403030489,7.58823303,1716.3,1716.2,0.00873922]
[1693403032090,5.47773648,1716.3,1716.2,0.00873922]
[1693403032289,5.47773648,1716.3,1716.2,0.00673922]
[1693403032493,11.55578968,1716.3,1716.2,0.00673922]
[1693403032689,11.55578968,1716.3,1716.0,8.157]
[1693403032893,7.77023686,1716.1,1716.0,8.157]
[1693403033193,7.77023686,1716.1,1715.7,3.2078]
[1693403033194,18.19717334,1716.1,1715.7,11.3648]
[1693403033593,18.19717334,1716.1,1715.7,13.34096343]
[1693403034196,4.56243686,1716.0,1715.7,13.34096343]
[1693403034398,2.26993648,1715.9,1715.6,11.5135]
[1693403034599,3.04135068,1715.7,1715.6,11.5135]
[1693403034799,3.04135068,1715.7,1715.6,12.94708176]
[1693403035095,3.04135068,1715.7,1715.6,9.59058176]
[1693403035296,3.04135068,1715.7,1715.6,12.79838176]
[1693403036188,2.45845068,1715.7,1715.6,12.79838176]
[1693403036493,2.56145678,1715.7,1715.6,8.157]
[1693403036693,5.76925678,1715.7,1715.2,6.73]
[1693403036996,1.52012942,1715.3,1715.2,14.887]
[1693403037199,1.52012942,1715.3,1715.2,25.97056929]
[1693403037588,1.52012942,1715.3,1715.2,14.77454519]
[1693403038904,0.93712942,1715.3,1715.2,14.77454519]
[1693403039400,5.24611535,1715.7,1715.2,25.97070982]
[1693403039601,0.29155382,1715.6,1715.4,3.2078]
[1693403039899,0.29155382,1715.5,1715.4,6.61754519]
[1693403040502,0.29155382,1715.7,1715.4,6.61754519]
[1693403040801,0.29155382,1715.6,1715.3,8.157]
[1693403041200,2.5614903,1715.5,1715.3,8.157]
[1693403041396,0.29155382,1715.4,1715.3,8.157]
[1693403041601,0.29155382,1715.4,1715.3,9.59058176]
[1693403041800,0.29155382,1715.4,1715.2,5.18396343]
[1693403041801,0.29155382,1715.4,1715.2,13.34096343]
[1693403042003,2.27963615,1715.3,1715.2,13.34096343]
[1693403042198,2.27963615,1715.3,1715.2,14.77454519]
[1693403043193,2.27963615,1715.4,1715.2,14.77454519]
[1693403043397,2.57121803,1715.4,1715.2,14.77454519]
[1693403043603,2.27963615,1715.4,1715.2,14.77454519]
[1693403045801,2.27963615,1715.5,1715.3,8.157]
[1693403046103,2.28838098,1715.5,1715.4,14.77454519]
[1693403046304,2.28838098,1715.5,1715.4,13.34096343]
[1693403046498,0.00874483,1715.5,1715.4,14.77454519]
[1693403047101,2.27963615,1715.8,1715.4,33.64861774]
[1693403047298,2.27963615,1715.8,1715.7,19.5218]
[1693403047503,2.27963615,1715.9,1715.7,22.93154519]
[1693403047804,2.27963615,1716.0,1715.8,8.157]
[1693403048005,2.27963615,1716.0,1715.9,14.77454519]
[1693403048202,0.29148479,1716.0,1715.9,1.97616343]
[1693403048405,0.29148479,1716.0,1715.9,2.26993648]
[1693403048805,0.29148479,1716.0,1715.7,11.3648]
[1693403049005,2.27229432,1716.0,1715.7,11.3648]
[1693403049205,0.29148479,1715.9,1715.7,11.3648]
[1693403049410,1.98080953,1715.8,1715.5,11.3648]
[1693403049907,0.29154206,1715.7,1715.5,8.157]
[1693403050107,12.81928005,1716.0,1715.6,9.59058176]
[1693403050404,0.29152812,1715.9,1715.8,8.157]
[1693403050600,0.29152812,1715.9,1715.8,11.86051824]
[1693403050806,0.00874202,1716.0,1715.8,11.86051824]
[1693403051109,0.00874202,1716.0,1715.9,11.3648]
[1693403051710,0.30022935,1716.0,1715.9,11.3648]
[1693403051910,0.30022935,1716.0,1715.9,3.2078]
[1693403052602,8.45722935,1716.0,1715.6,11.3648]
[1693403052799,13.63709686,1715.9,1715.5,8.157]
[1693403052998,0.29148733,1715.8,1715.5,8.157]
[1693403053205,1.98080953,1715.7,1715.5,8.157]
[1693403053808,1.98080953,1715.7,1715.5,9.59058176]
[1693403054406,11.3648,1715.9,1715.5,11.86051824]
[1693403054600,2.27234657,1715.8,1715.5,11.86051824]
[1693403054805,0.29153704,1715.7,1715.5,11.86051824]
[1693403057311,0.29153704,1715.7,1715.5,10.42693648]
[1693403057507,0.29153704,1715.7,1715.5,11.86051824]
[1693403059113,0.29153704,1715.7,1715.5,8.157]
[1693403059308,1.98080953,1715.6,1715.5,8.157]
[1693403059814,1.98080953,1715.6,1715.4,3.2078]
[1693403062016,8.157,1715.8,1715.4,12.79838176]
[1693403062208,0.29153839,1715.7,1715.4,12.79838176]
[1693403062409,0.29153839,1715.7,1715.5,2.26993648]
[1693403062712,8.44853839,1715.7,1715.4,3.2078]
[1693403062911,8.157,1715.7,1715.4,3.2078]
[1693403063312,8.157,1715.5,1715.4,3.2078]
[1693403063507,8.157,1715.5,1715.2,6.713]
[1693403063908,8.157,1715.5,1715.2,3.2078]
[1693403063909,10.13780953,1715.5,1715.2,3.2078]
[1693403064308,8.157,1715.3,1715.2,3.2078]
[1693403064509,10.13780953,1715.3,1715.2,3.2078]
[1693403068117,1.98080953,1715.3,1715.2,4.64138176]
[1693403068711,8.157,1715.4,1715.2,4.64138176]
[1693403068917,10.13780953,1715.4,1715.2,3.2078]
[1693403069714,10.13780953,1715.4,1715.2,4.64138176]
[1693403072321,5.249,1715.3,1715.2,4.64138176]
[1693403072821,5.249,1715.3,1715.2,3.2078]
[1693403073716,5.249,1715.3,1715.2,4.64138176]
[1693403074114,8.57909246,1715.3,1715.1,0.00874508]
[1693403074314,10.55990199,1715.2,1715.1,0.00874508]
[1693403074512,13.76770199,1715.2,1715.1,0.00874508]
[1693403074715,13.76770199,1715.2,1714.6,18.45438207]
[1693403075014,13.76770199,1715.2,1714.7,16.44760957]
[1693403075015,5.249,1715.0,1714.7,16.44760957]
[1693403075214,1.98080953,1714.9,1714.8,11.19860957]
[1693403076220,1.98080953,1714.9,1714.7,5.249]
[1693403076425,1.98080953,1714.9,1714.8,11.19880574]
[1693403076619,7.22980953,1714.9,1714.6,4.73238207]
[1693403076817,7.22980953,1714.9,1714.7,11.19876927]
[1693403077423,10.14780953,1714.9,1714.7,11.19876927]
[1693403078116,10.14780953,1714.9,1714.7,14.90228751]
[1693403078312,10.14780953,1714.9,1714.8,11.19864228]
[1693403078516,10.14780953,1714.9,1714.7,3.70351824]
[1693403078721,10.14780953,1714.9,1714.8,11.19863181]
[1693403078911,10.14780953,1714.9,1714.6,4.74112945]
[1693403079115,10.14780953,1714.9,1714.7,11.19865299]
[1693403080218,5.18860953,1714.9,1714.6,0.00874738]
[1693403080426,8.167,1714.7,1714.6,0.00874738]
[1693403080621,10.14780953,1714.7,1714.6,0.00874738]
[1693403081421,13.35560953,1714.7,1714.6,0.00874738]
[1693403082224,13.35560953,1714.7,1714.1,3.2078]
[1693403082421,8.167,1714.5,1714.2,11.20212207]
[1693403082623,8.167,1714.5,1714.1,11.3748]
[1693403082624,10.14780953,1714.5,1714.3,1.43358176]
[1693403082826,10.14780953,1714.5,1714.1,11.3748]
[1693403083524,10.14780953,1714.5,1714.1,13.64473648]
[1693403084125,8.167,1714.4,1714.1,5.47773648]
[1693403084326,10.14780953,1714.3,1714.1,3.2078]
[1693403084530,10.14780953,1714.3,1714.1,6.91131824]
[1693403086032,10.14780953,1714.3,1714.1,3.2078]
[1693403087331,10.14780953,1714.3,1714.1,4.64138176]
[1693403090532,8.167,1714.3,1714.1,6.91131824]
[1693403091236,8.167,1714.6,1714.2,8.167]
[1693403091443,8.167,1714.6,1714.5,3.2078]
[1693403091643,8.167,1714.6,1714.5,4.64138176]
[1693403091942,8.6351499,1714.7,1714.5,6.91131824]
[1693403092143,8.167,1714.7,1714.5,6.91131824]
[1693403092345,8.167,1714.7,1714.5,5.47773648]
[1693403093938,8.167,1714.7,1714.5,3.2078]
[1693403094244,10.14780953,1714.6,1714.5,3.2078]
[1693403094543,10.14780953,1714.6,1714.3,3.2078]
[1693403094739,8.167,1714.4,1714.3,3.2078]
[1693403095538,10.14780953,1714.4,1714.3,3.2078]
[1693403099042,8.167,1714.5,1714.3,4.64138176]
[1693403099740,8.167,1714.5,1714.3,3.2078]
[1693403099942,1.98080953,1714.4,1714.3,3.2078]
[1693403100342,10.14780953,1714.4,1714.3,3.2078]
[1693403101346,10.14780953,1714.4,1714.1,3.2078]
[1693403101543,8.167,1714.2,1714.0,10.0]
[1693403101744,1.98080953,1714.1,1714.0,10.0]
[1693403101939,10.14780953,1714.1,1714.0,10.0]
[1693403102341,7.23280953,1714.1,1714.0,10.0]
[1693403102948,5.252,1714.1,1714.0,11.43358176]
[1693403103348,5.252,1714.1,1714.0,10.0]
[1693403105946,5.252,1714.1,1714.0,4.6508]
[1693403106149,1.98080953,1714.0,1713.4,8.34650409]
[1693403106345,5.252,1713.6,1713.5,11.20563317]
[1693403106542,7.23280953,1713.6,1713.5,11.20563317]
[1693403106747,7.23280953,1713.6,1713.5,12.63976941]
[1693403107052,7.23280953,1713.6,1713.4,5.47773648]
[1693403107248,5.252,1713.5,1713.4,5.47773648]
[1693403107544,5.252,1713.5,1713.4,6.91131824]
[1693403108046,5.252,1713.7,1713.4,6.91131824]
[1693403108253,7.23280953,1713.7,1713.4,6.91131824]
[1693403108849,5.252,1713.8,1713.6,3.2078]
[1693403109051,5.252,1714.0,1713.7,8.95551824]
[1693403109247,5.72069582,1714.3,1713.9,8.4598]
[1693403109553,5.72069582,1714.3,1714.1,3.2078]
[1693403109753,5.252,1714.5,1714.2,6.68558176]
[1693403110052,5.71509128,1714.6,1714.4,3.2078]
[1693403110245,4.6684,1714.6,1714.5,1.43358176]
[1693403110450,4.0848,1714.6,1714.5,3.70351824]
[1693403111349,7.52289981,1715.2,1714.5,21.91692864]
[1693403111543,5.252,1715.2,1714.9,3.2078]
[1693403111741,5.252,1715.2,1714.8,5.252]
[1693403111742,5.2213,1715.2,1715.1,3.2078]
[1693403111941,5.252,1715.2,1715.1,3.2078]
[1693403112155,4.6995,1715.4,1715.2,2.26993648]
[1693403112450,8.165,1715.4,1715.3,3.2078]
[1693403112643,8.165,1715.4,1715.3,4.64138176]
[1693403113047,8.165,1715.4,1715.2,2.26993648]
[1693403113048,8.62086252,1715.5,1715.2,2.26993648]
[1693403113349,8.165,1715.3,1715.2,2.26993648]
[1693403113550,8.165,1715.3,1715.1,8.74773648]
[1693403114054,8.165,1715.3,1715.1,10.18131824]
[1693403114454,8.165,1715.3,1715.2,0.00874457]
[1693403116256,10.14580953,1715.3,1715.2,0.00874457]
[1693403116645,12.41670934,1715.3,1714.9,3.2078]
[1693403116850,8.165,1715.1,1714.9,3.2078]
[1693403117052,10.14580953,1715.1,1714.9,4.64138176]
[1693403118856,8.165,1715.3,1715.0,2.26993648]
[1693403119053,8.165,1715.3,1715.2,3.2078]
[1693403119354,10.43589981,1715.3,1715.1,1.43358176]
[1693403119552,10.43589981,1715.4,1715.2,5.47773648]
[1693403119754,8.165,1715.4,1715.3,1.43358176]
[1693403119950,0.46683619,1715.4,1715.3,1.43358176]
[1693403120160,2.27964438,1715.5,1715.3,1.43358176]
[1693403120454,2.27964438,1715.5,1715.4,13.64273648]
[1693403120760,0.00874457,1715.5,1715.4,13.64273648]
[1693403121558,0.00874457,1715.5,1715.4,5.47773648]
[1693403124050,0.00874457,1715.5,1715.4,13.64273648]
[1693403125454,0.00874457,1715.5,1715.4,21.17156463]
[1693403126557,0.46438732,1715.8,1715.5,1.43358176]
[1693403126755,8.165,1715.9,1715.7,3.2078]
[1693403127155,8.165,1715.9,1715.8,1.43358176]
[1693403127356,0.47660804,1715.9,1715.8,3.70351824]
[1693403127848,10.44067457,1716.0,1715.8,3.70351824]
[1693403128050,4.2564841,1716.1,1715.9,3.2078]
[1693403128259,8.165,1716.0,1715.9,3.2078]
[1693403128661,0.45627127,1716.1,1715.9,3.2078]
[1693403128855,2.27567457,1716.3,1716.0,3.70351824]
[1693403129055,10.44067457,1716.4,1716.2,3.2078]
[1693403129264,10.44067457,1716.4,1716.2,5.47773648]
[1693403129265,8.165,1716.4,1716.2,5.47773648]
[1693403129457,8.63771115,1716.4,1716.2,5.47773648]
[1693403129763,10.91338572,1716.4,1716.2,5.47773648]
[1693403130155,8.63771115,1716.4,1716.2,6.91131824]
[1693403131062,0.47271115,1716.4,1716.2,15.07631824]
[1693403131253,10.44067457,1716.6,1716.2,15.07631824]
[1693403131562,10.90569216,1716.6,1716.2,15.07631824]
[1693403131961,10.90569216,1716.6,1716.3,0.00932861]
[1693403132164,10.90569216,1716.6,1716.4,3.70351824]
[1693403132362,8.165,1716.5,1716.3,0.00932861]
[1693403132760,10.14580953,1716.5,1716.3,0.00932861]
[1693403132963,10.14580953,1716.5,1716.0,14.7504]
[1693403133156,10.14580953,1716.5,1716.2,3.2078]
[1693403133361,11.80164253,1716.6,1716.3,1.43358176]
[1693403133565,9.52596796,1716.6,1716.4,2.26993648]
[1693403133764,0.46501759,1716.6,1716.5,1.43358176]
[1693403133961,5.48347457,1716.9,1716.5,1.44286173]
[1693403134159,7.4642841,1716.9,1716.5,1.44286173]
[1693403134359,4.72911557,1716.9,1716.6,5.47773648]
[1693403134562,8.63763147,1716.9,1716.7,1.43358176]
[1693403134770,0.47263147,1716.9,1716.8,3.2078]
[1693403135067,8.165,1717.0,1716.8,5.47773648]
[1693403135565,8.165,1717.0,1716.9,1.43358176]
[1693403135766,8.165,1717.1,1716.9,1.43358176]
[1693403136871,2.27567457,1717.2,1717.0,2.26993648]
[1693403137165,8.165,1717.3,1717.1,1.43358176]
[1693403137566,8.165,1717.3,1717.2,2.26993648]
[1693403137766,8.165,1717.3,1717.0,3.2078]
[1693403138066,8.165,1717.2,1717.0,3.2078]
[1693403138268,1.98080953,1717.1,1717.0,3.2078]
[1693403138466,8.165,1717.2,1717.0,4.64138176]
[1693403139073,8.165,1717.1,1716.8,3.2078]
[1693403139274,8.165,1717.0,1716.8,3.18672]
[1693403139667,8.165,1717.0,1716.9,1.43358176]
[1693403140166,8.165,1717.0,1716.9,0.00873565]
[1693403140865,11.3728,1717.0,1716.9,0.00873565]
[1693403141263,11.3728,1717.0,1716.4,11.3728]
[1693403141465,8.165,1716.8,1716.4,11.3728]
[1693403141761,8.165,1717.0,1716.6,7.98638176]
[1693403141965,8.17373668,1717.1,1716.7,8.165]
[1693403142166,8.17373668,1717.1,1716.8,5.47773648]
[1693403142363,8.17373668,1717.1,1716.9,1.43358176]
[1693403144463,0.00873668,1717.1,1716.9,1.43358176]
[1693403145064,1.98080953,1717.0,1716.8,8.165]
[1693403145367,1.98080953,1717.0,1716.8,1.43358176]
[1693403145566,1.98080953,1717.0,1716.7,8.165]
[1693403146372,0.00873668,1717.1,1716.8,12.80638176]
[1693403146767,0.00873668,1717.1,1716.9,2.26993648]
[1693403147175,8.17373668,1717.1,1716.7,8.165]
[1693403147673,1.98080953,1717.0,1716.7,8.165]
[1693403148274,1.98080953,1717.0,1716.8,1.43358176]
[1693403148575,1.98080953,1717.0,1716.7,10.43493648]
[1693403149382,8.165,1716.9,1716.5,8.165]
[1693403149579,1.98080953,1716.8,1716.5,8.165]
[1693403149773,5.18860953,1716.8,1716.5,8.165]
[1693403149974,5.18860953,1716.8,1716.6,0.00925565]
[1693403150175,8.165,1716.7,1716.6,0.00925565]
[1693403150984,8.165,1716.7,1716.3,8.165]
[1693403151282,11.3728,1716.4,1716.0,11.3728]
[1693403151676,1.98080953,1716.3,1716.0,11.3728]
[1693403151871,1.98080953,1716.3,1716.0,8.165]
[1693403152077,1.98080953,1716.3,1716.1,0.00750181]
[1693403153576,3.2078,1716.2,1716.1,0.00750181]
[1693403153772,11.3728,1716.2,1716.1,0.00750181]
[1693403153980,11.3728,1716.2,1715.8,14.6662]
[1693403154178,1.98080953,1716.1,1715.8,14.6662]
[1693403154584,3.2078,1716.2,1716.0,8.165]
[1693403155080,3.2078,1716.2,1716.1,11.86851824]
[1693403155277,11.5482,1716.7,1716.1,8.165]
[1693403155472,11.5482,1716.7,1716.3,8.165]
[1693403155676,1.98080953,1716.6,1716.3,8.165]
[1693403155872,1.98080953,1716.6,1716.4,1.43358176]
[1693403156271,1.98080953,1716.6,1716.3,10.43493648]
[1693403157584,1.98080953,1716.6,1716.4,1.43358176]
[1693403158779,5.18860953,1716.6,1716.3,8.165]
[1693403158980,8.165,1716.5,1716.2,0.00873922]
[1693403159289,8.165,1716.5,1716.3,1.43358176]
[1693403160483,8.165,1716.5,1716.2,5.8600757]
[1693403160685,1.98080953,1716.4,1716.2,3.59013922]
[1693403160887,10.14580953,1716.4,1716.2,3.59013922]
[1693403161391,14.86637208,1716.4,1716.2,3.59013922]
[1693403161592,14.86637208,1716.4,1716.2,0.00873922]
[1693403161790,17.14204665,1716.4,1716.2,0.00873922]
[1693403162185,14.86637208,1716.4,1716.2,0.00873922]
[1693403162586,1.98080953,1716.4,1716.2,1.44232098]
[1693403162996,3.49357208,1716.4,1716.2,0.00873922]
[1693403163191,1.51276255,1716.3,1716.2,0.00873922]
[1693403163703,3.49357208,1716.4,1716.2,1.44232098]
[1693403164197,1.51276255,1716.3,1716.2,1.44232098]
[1693403164797,11.95343712,1716.3,1716.2,0.00873922]
[1693403165103,10.44067457,1716.3,1716.2,0.00873922]
[1693403166003,10.44067457,1716.3,1716.2,1.44232098]
[1693403166205,9.68107867,1716.3,1716.2,1.44232098]
[1693403166500,10.44067457,1716.3,1716.2,1.44232098]
[1693403166900,3.79249826,1716.3,1716.2,1.44232098]
[1693403167095,1.51682369,1716.3,1716.2,1.44232098]
[1693403168301,3.79249826,1716.3,1716.2,1.44232098]
[1693403168601,2.27567457,1716.3,1716.2,0.00873922]
[1693403169100,2.56715187,1716.3,1716.2,0.00873922]
[1693403169302,3.32571007,1716.3,1716.2,0.00873922]
[1693403171105,1.98080953,1716.2,1715.8,3.5814]
[1693403171301,1.51907755,1715.9,1715.8,3.5814]
[1693403171606,3.49988708,1715.9,1715.8,3.5814]
[1693403172108,3.49988708,1715.9,1715.8,5.01498176]
[1693403172297,5.01919483,1715.9,1715.8,5.01498176]
[1693403172497,3.50011728,1715.9,1715.8,5.01498176]
[1693403172703,3.50011728,1715.9,1715.8,3.5814]
[1693403173105,5.77907891,1715.9,1715.8,3.5814]
[1693403173305,4.25977116,1715.9,1715.8,3.5814]
[1693403173909,4.25977116,1715.9,1715.8,5.01498176]
[1693403174109,4.55129886,1715.9,1715.8,3.5814]
[1693403174305,2.27233723,1715.9,1715.8,3.5814]
[1693403174510,13.47595274,1715.9,1715.8,3.5814]
[1693403174813,12.71568458,1715.9,1715.8,3.5814]
[1693403175003,12.42415688,1715.9,1715.8,3.5814]
[1693403176013,13.94283455,1715.9,1715.8,3.5814]
[1693403176310,13.94283455,1715.9,1715.8,5.01498176]
[1693403176510,1.51867767,1715.9,1715.8,5.01498176]
[1693403177114,1.51867767,1716.0,1715.8,13.17998176]
[1693403177306,1.51867767,1716.0,1715.9,5.47773648]
[1693403179307,3.4994872,1716.1,1715.9,5.47773648]
[1693403179513,9.68367767,1716.0,1715.8,3.5814]
[1693403179715,11.96202502,1716.0,1715.8,3.5814]
[1693403180109,1.51867767,1715.9,1715.8,3.5814]
[1693403180315,11.6644872,1715.9,1715.8,3.5814]
[1693403180515,13.94283455,1715.9,1715.8,3.5814]
[1693403181110,13.94283455,1715.9,1715.5,11.3728]
[1693403181111,10.14580953,1715.9,1715.7,0.00874176]
[1693403181316,11.9616607,1715.8,1715.7,0.00874176]
[1693403181516,10.44299642,1715.8,1715.7,0.00874176]
[1693403181814,11.96139643,1715.8,1715.7,0.00874176]
[1693403182115,13.65079642,1715.8,1715.7,0.00874176]
[1693403182315,15.16918656,1715.8,1715.7,0.00874176]
[1693403182711,15.16898241,1715.8,1715.7,0.00874176]
[1693403182909,13.65079642,1715.8,1715.7,0.00874176]
[1693403183616,13.94235258,1715.8,1715.4,3.6078]
[1693403183811,8.165,1715.5,1715.4,3.6078]
[1693403184210,9.68265393,1715.5,1715.4,3.6078]
[1693403184407,11.66346346,1715.5,1715.4,3.6078]
[1693403185108,10.14580953,1715.5,1715.4,3.6078]
[1693403185317,11.66346346,1715.5,1715.4,3.6078]
[1693403185816,10.14580953,1715.5,1715.4,3.6078]
[1693403186615,11.66346346,1715.5,1715.4,3.6078]
[1693403187008,11.66346346,1715.5,1714.9,3.5426]
[1693403187212,11.66346346,1715.5,1715.0,3.3322]
[1693403187213,8.165,1715.2,1715.0,3.3322]
[1693403187515,1.98080953,1715.1,1715.0,3.3322]
[1693403188314,10.14580953,1715.1,1715.0,3.3322]
[1693403189314,10.14580953,1715.1,1715.0,4.76578176]
[1693403190111,10.14580953,1715.1,1715.0,3.3322]
[1693403190312,10.14580953,1715.1,1715.0,6.54]
[1693403190516,8.165,1715.2,1715.0,7.97358176]
[1693403191414,10.14580953,1715.2,1715.0,6.54]
[1693403191614,8.165,1715.1,1715.0,6.54]
[1693403192523,8.165,1715.1,1715.0,7.97358176]
[1693403192921,10.14580953,1715.2,1715.0,7.97358176]
[1693403193423,8.165,1715.2,1715.0,7.97358176]
[1693403195324,8.165,1715.2,1715.1,2.26993648]
[1693403196922,8.165,1715.2,1715.0,7.97358176]
[1693403197123,8.165,1715.2,1715.0,10.24351824]
[1693403199025,1.98080953,1715.1,1715.0,3.3322]
[1693403199323,1.98080953,1715.1,1714.8,3.2078]
[1693403199324,10.14580953,1715.1,1714.8,3.2078]
[1693403199522,8.165,1714.9,1714.7,3.5439]
[1693403199723,10.14580953,1714.9,1714.7,3.5439]
[1693403199919,10.14580953,1714.9,1714.7,4.97748176]
[1693403200322,10.14580953,1714.9,1714.7,3.5439]
[1693403202124,10.14580953,1714.9,1714.7,7.24741824]
[1693403202920,10.14580953,1714.9,1714.8,3.2078]
[1693403203528,3.79225497,1715.4,1714.8,11.3728]
[1693403203724,9.68190199,1715.5,1715.3,3.2078]
[1693403204026,1.51690199,1715.7,1715.4,8.165]
[1693403204328,0.93380199,1715.8,1715.6,3.2078]
[1693403204526,2.27535298,1716.0,1715.7,8.165]
[1693403204727,1.69245298,1716.1,1715.9,3.2078]
[1693403204924,8.165,1716.2,1716.0,3.70351824]
[1693403205118,3.5049494,1716.3,1716.0,11.86851824]
[1693403205329,0.29148756,1716.2,1716.0,11.86851824]
[1693403206024,0.00874126,1716.2,1716.0,11.86851824]
[1693403206526,8.165,1716.1,1715.9,3.2078]
[1693403207128,10.14580953,1716.1,1715.9,3.2078]
[1693403208624,10.14580953,1716.1,1715.9,3.1725175]
[1693403209026,0.00874126,1716.2,1715.9,15.04103574]
[1693403210039,8.165,1716.1,1715.9,5.44245398]
[1693403210231,0.00874126,1716.2,1716.0,1.43358176]
[1693403210432,0.00874126,1716.2,1716.1,2.26993648]
[1693403210732,3.33402622,1716.2,1716.1,2.26993648]
[1693403211928,3.33402622,1716.2,1716.0,8.165]
[1693403212137,11.49902622,1716.2,1715.9,3.1725175]
[1693403212333,11.20754524,1716.2,1715.9,5.44245398]
[1693403212941,0.29149244,1716.1,1715.9,5.44245398]
[1693403213337,0.29149244,1716.1,1715.9,6.87603574]
[1693403214543,8.165,1716.0,1715.7,10.3219]
[1693403214842,8.165,1715.8,1715.7,3.5313]
[1693403215137,10.4373496,1715.8,1715.7,3.5313]
[1693403215339,10.4373496,1715.8,1715.5,3.2078]
[1693403215539,8.165,1715.6,1715.5,3.2078]
[1693403215735,10.14580953,1715.6,1715.3,3.5742]
[1693403215934,8.165,1715.5,1715.3,3.5742]
[1693403216130,10.14580953,1715.6,1715.3,7.27771824]
[1693403216442,3.2078,1715.7,1715.4,3.2078]
[1693403216443,8.165,1715.7,1715.4,3.2078]
[1693403216740,8.165,1715.6,1715.4,3.2078]
[1693403216936,8.165,1715.5,1715.4,3.2078]
[1693403217237,10.14580953,1715.5,1715.4,3.2078]
[1693403217738,10.14580953,1715.5,1715.4,4.64138176]
[1693403217938,1.98080953,1715.5,1715.4,4.64138176]
[1693403218141,8.165,1715.6,1715.4,4.64138176]
[1693403219536,10.14580953,1715.5,1715.4,3.2078]
[1693403220038,13.64520284,1715.5,1715.0,3.5414]
[1693403220338,8.165,1715.3,1715.0,3.5414]